Workbook

Sheet Feuil1

Sheet Boissons (hidden)
A1: Lait | B1: 100 gr | C1: 10 cl | D1: 20 cl | E1: 40 cl | I1: Jus | J1: 100 gr | K1: 12 cl | L1: 30 cl | O1: Nesquik | P1: 100 gr | Q1: 20 cl | R1: 40 cl
A2: Entier | B2: 9,71 cl | C2: 1.03 | D2: 2.06 | E2: 4.12 | I2: d'orange | J2: 9,71 cl | K2: 1.2 | L2: 3.1 | O2: 1,5cc/10cl | P2: 9,1 cl | Q2: 2.06 | R2: 4.12
C3: 1 | D3: 2 | E3: 3 | K3: 2 | L3: 3 | O3: lait 1/2 | Q3: 2 | R3: 3
A4: kcal | B4: 65.2 | C4: =B4*C$2 -> 67.156 | D4: =B4*D$2 -> 134.312 | E4: =B4*E$2 -> 268.624 | I4: kcal | J4: 48 | K4: =J4*K$2 -> 57.6 | L4: =J4*L$2 -> 148.8 | O4: kcal | P4: 68.2 | Q4: =P4*Q$2 -> 140.492 | R4: =P4*R$2 -> 280.984
A5: P | B5: 3.2 | C5: =B5*C$2 -> 3.296 | D5: 6.592 | E5: 13.184 | I5: P | J5: 0.5 | K5: 0.6 | L5: 1.55 | O5: P | P5: 3.4 | Q5: 7.004 | R5: 14.008
A6: G | B6: 5 | C6: 5.15 | D6: 10.3 | E6: 20.6 | I6: G | J6: 11 | K6: 13.2 | L6: 34.1 | O6: G | P6: 10 | Q6: 20.6 | R6: 41.2
A7: Su | B7: 5 | C7: 5.15 | D7: 10.3 | E7: 20.6 | I7: Su | J7: 11 | K7: 13.2 | L7: 34.1 | O7: Su | P7: 9.7 | Q7: 19.982 | R7: 39.964
A8: L | B8: 3.6 | C8: 3.708 | D8: 7.416 | E8: 14.832 | I8: L | J8: 0.3 | K8: 0.36 | L8: 0.93 | O8: L | P8: 1.7 | Q8: 3.502 | R8: 7.004
A9: Sel | B9: 0.1 | C9: 0.103 | D9: 0.206 | E9: 0.412 | I9: Sel | J9: 0.01 | K9: 0.012 | L9: 0.031 | O9: Sel | P9: 0.1 | Q9: 0.206 | R9: 0.412
A10: F | B10: 0 | C10: 0 | D10: 0 | E10: 0 | I10: F | J10: 0.3 | K10: 0.36 | L10: 0.93 | O10: F | P10: 0.4 | Q10: 0.824 | R10: 1.648
A13: Lait | B13: 100 gr | C13: 10 cl | D13: 20 cl | E13: 40 cl | I13: Sucre | J13: 5,9g | O13: café prét | P13: 100 gr | Q13: 20 cl | R13: 40 cl | U13: thé noir | V13: 100 gr | W13: 20 cl | X13: 40 cl
A14: Demi | B14: 9,71 cl | C14: 1.03 | D14: 2.06 | E14: 4.12 | O14: non sucré | P14: 10 cl | Q14: 2 | R14: 4 | U14: non sucré | V14: 10 cl | W14: 2 | X14: 4
C15: 1 | D15: 2 | E15: 3 | I15: calibre 4 | J15: 1 morceau | O15: non inst. | U15: infusé
A16: kcal | B16: 45 | C16: =B16*C$14 -> 46.35 | D16: =B16*D$14 -> 92.7 | E16: =B16*E$14 -> 185.4 | I16: kcal | J16: 23.6 | O16: kcal | P16: 6.88 | Q16: =P16*Q$14 -> 13.76 | R16: =P16*R$14 -> 27.52 | U16: kcal | V16: 1.26 | W16: =V16*W$14 -> 2.52 | X16: =V16*X$14 -> 5.04
A17: P | B17: 3.3 | C17: =B17*C$14 -> 3.399 | D17: 6.798 | E17: 13.596 | I17: P | J17: 0 | O17: P | P17: 0 | Q17: =P17*Q$14 -> 0 | R17: =P17*R$14 -> 0 | U17: P | V17: 0 | W17: =V17*W$14 -> 0 | X17: =V17*X$14 -> 0
A18: G | B18: 4.6 | C18: 4.738 | D18: 9.476 | E18: 18.952 | I18: G | J18: 5.9 | O18: G | P18: 1.35 | Q18: 2.7 | R18: 5.4 | U18: G | V18: 0.3 | W18: 0.6 | X18: 1.2
A19: Su | B19: 4.6 | C19: 4.738 | D19: 9.476 | E19: 18.952 | I19: Su | J19: 5.9 | O19: Su | P19: 0 | Q19: 0 | R19: 0 | U19: Su | V19: 0 | W19: 0 | X19: 0
A20: L | B20: 1.54 | C20: 1.5862 | D20: 3.1724 | E20: 6.3448 | I20: L | J20: 0 | O20: L | P20: 0.02 | Q20: 0.04 | R20: 0.08 | U20: L | V20: 0.07 | W20: 0.14 | X20: 0.28
A21: Sel | B21: 0.1 | C21: 0.103 | D21: 0.206 | E21: 0.412 | I21: Sel | J21: 0 | O21: Sel | P21: 0.01 | Q21: 0.02 | R21: 0.04 | U21: Sel | V21: 0 | W21: 0 | X21: 0
A22: F | B22: 0 | C22: 0 | D22: 0 | E22: 0 | I22: F | J22: 0 | O22: F | P22: 0 | Q22: 0 | R22: 0 | U22: F | V22: 0 | W22: 0 | X22: 0
A25: Lait | B25: 100 gr | C25: 10 cl | D25: 20 cl | E25: 40 cl | I25: Lait | J25: 10 cl | K25: 20 cl | L25: 40 cl | O25: Lait | P25: 10 cl | Q25: 20 cl | R25: 40 cl | U25: Lait | V25: 10 cl | W25: 20 cl | X25: 40 cl
A26: Ecrémé | B26: 9,71 cl | C26: 1.03 | D26: 2.06 | E26: 4.12 | I26: 12 | O26: 13 | U26: 23
C27: 1 | D27: 2 | E27: 3 | I27: Ent vs Demi | J27: 1 | K27: 2 | L27: 3 | O27: Ent vs Ecr | P27: 1 | Q27: 2 | R27: 3 | U27: Demi vs Ecr | V27: 1 | W27: 2 | X27: 3
A28: kcal | B28: 33.4 | C28: =B28*C$26 -> 34.402 | D28: =B28*D$26 -> 68.804 | E28: =B28*E$26 -> 137.608 | I28: kcal | J28: =C4-C16 -> 20.806 | K28: =D4-D16 -> 41.612 | L28: 83.224 | O28: kcal | P28: =C4-C28 -> 32.754 | Q28: =D4-D28 -> 65.508 | R28: 131.016 | U28: kcal | V28: =C16-C28 -> 11.948 | W28: =D16-D28 -> 23.896 | X28: 47.792
A29: P | B29: 3.4 | C29: =B29*C$26 -> 3.502 | D29: 7.004 | E29: 14.008 | I29: P | J29: =C5-C17 -> -0.103 | K29: -0.206 | L29: -0.412 | O29: P | P29: =C5-C29 -> -0.206 | Q29: -0.412 | R29: -0.824 | U29: P | V29: =C17-C29 -> -0.103 | W29: -0.206 | X29: -0.412
A30: G | B30: 4.7 | C30: 4.841 | D30: 9.682 | E30: 19.364 | I30: G | J30: 0.412 | K30: 0.824 | L30: 1.648 | O30: G | P30: 0.309 | Q30: 0.618 | R30: 1.236 | U30: G | V30: -0.103 | W30: -0.206 | X30: -0.412
A31: Su | B31: 4.7 | C31: 4.841 | D31: 9.682 | E31: 19.364 | I31: Su | J31: 0.412 | K31: 0.824 | L31: 1.648 | O31: Su | P31: 0.309 | Q31: 0.618 | R31: 1.236 | U31: Su | V31: -0.103 | W31: -0.206 | X31: -0.412
A32: L | B32: 0.15 | C32: 0.1545 | D32: 0.309 | E32: 0.618 | I32: L | J32: 2.1218 | K32: 4.2436 | L32: 8.4872 | O32: L | P32: 3.5535 | Q32: 7.107 | R32: 14.214 | U32: L | V32: 1.4317 | W32: 2.8634 | X32: 5.7268
A33: Sel | B33: 0.1 | C33: 0.103 | D33: 0.206 | E33: 0.412 | I33: Sel | J33: 0 | K33: 0 | L33: 0 | O33: Sel | P33: 0 | Q33: 0 | R33: 0 | U33: Sel | V33: 0 | W33: 0 | X33: 0
A34: F | B34: 0 | C34: 0 | D34: 0 | E34: 0 | I34: F | J34: 0 | K34: 0 | L34: 0 | O34: F | P34: 0 | Q34: 0 | R34: 0 | U34: F | V34: 0 | W34: 0 | X34: 0

Sheet Pain-biscottes (hidden)
A1: Pain blanc | B1: 100 gr | C1: 40 gr | E1: 60 gr | G1: 80 gr | K1: Pain de mie | L1: 100 gr | M1: 40 gr | O1: 80 gr | Q1: 120 gr | U1: Biscotte | V1: 100 gr | W1: 10 gr | X1: 20 gr | Y1: 30 gr | Z1: 40 gr | AA1: 50 gr | AB1: 60 gr | AE1: Mie | AF1: Nature | AG1: nature | AH1: multi
C2: 0.4 | E2: 0.6 | G2: 0.8 | K2: 1 | M2: 0.4 | O2: 0.8 | Q2: 1.2 | W2: 0.1 | X2: 0.2 | Y2: 0.3 | Z2: 0.4 | AA2: 0.5 | AB2: 0.6 | AE2: 1tr | AF2: 12 | AG2: 13 | AH2: 23
C3: 1 | E3: 2 | G3: 3 | K3: nature | M3: 1 Tr | O3: 2 Tr | Q3: 3 Tr | U3: nature | W3: 1 | X3: 2 | Y3: 3 | Z3: 4 | AA3: 5 | AB3: 6 | AF3: Multi | AG3: comp | AH3: comp
A4: kcal | B4: 286 | C4: =B4*C$2 -> 114.4 | D4: =E4-C4 -> 57.2 | E4: =B4*E$2 -> 171.6 | F4: =G4-E4 -> 57.2 | G4: =B4*G$2 -> 228.8 | H4: =G4-C4 -> 114.4 | K4: kcal | L4: 281 | M4: =L4*M$2 -> 112.4 | N4: =O4-M4 -> 112.4 | O4: =L4*O$2 -> 224.8 | P4: =Q4-O4 -> 112.4 | Q4: =L4*Q$2 -> 337.2 | R4: =Q4-M4 -> 224.8 | U4: kcal | V4: 404 | W4: =V4*W$2 -> 40.4 | X4: =V4*X$2 -> 80.8 | Y4: =V4*Y$2 -> 121.2 | Z4: =V4*Z$2 -> 161.6 | AA4: =V4*AA$2 -> 202 | AB4: =V4*AB$2 -> 242.4 | AE4: kcal | AF4: =M16-M4 -> -2.8 | AG4: =M28-M4 -> -9.2 | AH4: =M28-M16 -> -6.4
A5: P | B5: 9 | C5: =B5*C$2 -> 3.6 | D5: 1.8 | E5: =B5*E$2 -> 5.4 | F5: 1.8 | G5: 7.2 | H5: 3.6 | K5: P | L5: 8.2 | M5: =L5*M$2 -> 3.28 | N5: 3.28 | O5: 6.56 | P5: 3.28 | Q5: 9.84 | R5: 6.56 | U5: P | V5: 10.8 | W5: =V5*W$2 -> 1.08 | X5: =V5*X$2 -> 2.16 | Y5: 3.24 | Z5: =V5*Z$2 -> 4.32 | AA5: 5.4 | AB5: =V5*AB$2 -> 6.48 | AE5: P | AF5: =M17-M5 -> 0.6 | AG5: =M29-M5 -> 0.08 | AH5: =M29-M17 -> -0.52
A6: G | B6: 57 | C6: 22.8 | D6: 11.4 | E6: =B6*E$2 -> 34.2 | F6: 11.4 | G6: 45.6 | H6: 22.8 | K6: G | L6: 49.2 | M6: 19.68 | N6: 19.68 | O6: 39.36 | P6: 19.68 | Q6: 59.04 | R6: 39.36 | U6: G | V6: 71.7 | W6: 7.17 | X6: 14.34 | Y6: 21.51 | Z6: 28.68 | AA6: 35.85 | AB6: 43.02 | AE6: G | AF6: -2.24 | AG6: -2.88 | AH6: -0.64
A7: Su | B7: 2 | C7: 0.8 | D7: 0.4 | E7: 1.2 | F7: 0.4 | G7: 1.6 | H7: 0.8 | K7: Su | L7: 5.4 | M7: 2.16 | N7: 2.16 | O7: 4.32 | P7: 2.16 | Q7: 6.48 | R7: 4.32 | U7: Su | V7: 7.2 | W7: 0.72 | X7: 1.44 | Y7: 2.16 | Z7: 2.88 | AA7: 3.6 | AB7: 4.32 | AE7: Su | AF7: -0.4 | AG7: 0.04 | AH7: 0.44
A8: L | B8: 1.5 | C8: 0.6 | D8: 0.3 | E8: 0.9 | F8: 0.3 | G8: 1.2 | H8: 0.6 | K8: L | L8: 4.7 | M8: 1.88 | N8: 1.88 | O8: 3.76 | P8: 1.88 | Q8: 5.64 | R8: 3.76 | U8: L | V8: 6.8 | W8: 0.68 | X8: 1.36 | Y8: 2.04 | Z8: 2.72 | AA8: 3.4 | AB8: 4.08 | AE8: L | AF8: 0.28 | AG8: -0.16 | AH8: -0.44
A9: Sel | B9: 1.7 | C9: 0.68 | D9: 0.34 | E9: 1.02 | F9: 0.34 | G9: 1.36 | H9: 0.68 | K9: Sel | L9: 1.3 | M9: 0.52 | N9: 0.52 | O9: 1.04 | P9: 0.52 | Q9: 1.56 | R9: 1.04 | U9: Sel | V9: 1.3 | W9: 0.13 | X9: 0.26 | Y9: 0.39 | Z9: 0.52 | AA9: 0.65 | AB9: 0.78 | AE9: Sel | AF9: 0 | AG9: 0 | AH9: 0
A10: F | B10: 3 | C10: 1.2 | D10: 0.6 | E10: 1.8 | F10: 0.6 | G10: 2.4 | H10: 1.2 | K10: F | L10: 3 | M10: 1.2 | N10: 1.2 | O10: 2.4 | P10: 1.2 | Q10: 3.6 | R10: 2.4 | U10: F | V10: 3.9 | W10: 0.39 | X10: 0.78 | Y10: 1.17 | Z10: 1.56 | AA10: 1.95 | AB10: 2.34 | AE10: F | AF10: 1.08 | AG10: 1.68 | AH10: 0.6
A13: Pain | B13: 100 gr | C13: 40 gr | E13: 60 gr | G13: 80 gr | K13: Pain de mie | L13: 100 gr | M13: 40 gr | O13: 80 gr | Q13: 120 gr | U13: Biscotte | V13: 100 gr | W13: 10 gr | X13: 20 gr | Y13: 30 gr | Z13: 40 gr | AA13: 50 gr | AB13: 60 gr | AE13: Pain | AF13: blanc | AG13: blanc | AH13: multi | AK13: Biscotte | AL13: Nature | AM13: nature | AN13: multi
C14: 0.4 | E14: 0.6 | G14: 0.8 | K14: 2 | M14: 0.4 | O14: 0.8 | Q14: 1.2 | W14: 0.1 | X14: 0.2 | Y14: 0.3 | Z14: 0.4 | AA14: 0.5 | AB14: 0.6 | AF14: 12 | AG14: 13 | AH14: 23 | AK14: 1tr | AL14: 12 | AM14: 13 | AN14: 23
A15: multi cér. | C15: 1 | E15: 2 | G15: 3 | K15: multi cér. | M15: 1 Tr | O15: 2 Tr | Q15: 3 Tr | U15: multi cér. | W15: 1 | X15: 2 | Y15: 3 | Z15: 4 | AA15: 5 | AB15: 6 | AF15: multi | AG15: camp | AH15: camp | AL15: Multi | AM15: comp | AN15: comp
A16: kcal | B16: 301 | C16: =B16*C$14 -> 120.4 | D16: =E16-C16 -> 60.2 | E16: =B16*E$14 -> 180.6 | F16: =G16-E16 -> 60.2 | G16: =B16*G$14 -> 240.8 | H16: =G16-C16 -> 120.4 | K16: kcal | L16: 274 | M16: =L16*M$14 -> 109.6 | N16: =O16-M16 -> 109.6 | O16: =L16*O$14 -> 219.2 | P16: =Q16-O16 -> 109.6 | Q16: =L16*Q$14 -> 328.8 | R16: =Q16-M16 -> 219.2 | U16: kcal | V16: 398 | W16: =V16*W$14 -> 39.8 | X16: =V16*X$14 -> 79.6 | Y16: =V16*Y$14 -> 119.4 | Z16: =V16*Z$14 -> 159.2 | AA16: =V16*AA$14 -> 199 | AB16: =V16*AB$14 -> 238.8 | AE16: kcal | AF16: =B16-B4 -> 15 | AG16: =B28-B4 -> -13 | AH16: =B28-B16 -> -28 | AK16: kcal | AL16: =W16-W4 -> -0.6 | AM16: =W28-W4 -> -1.1 | AN16: =W28-W16 -> -0.5
A17: P | B17: 9 | C17: =B17*C$14 -> 3.6 | D17: 1.8 | E17: 5.4 | F17: 1.8 | G17: 7.2 | H17: 3.6 | K17: P | L17: 9.7 | M17: =L17*M$14 -> 3.88 | N17: 3.88 | O17: 7.76 | P17: 3.88 | Q17: 11.64 | R17: 7.76 | U17: P | V17: 13 | W17: =V17*W$14 -> 1.3 | X17: =V17*X$14 -> 2.6 | Y17: =V17*Y$14 -> 3.9 | Z17: =V17*Z$14 -> 5.2 | AA17: =V17*AA$14 -> 6.5 | AB17: =V17*AB$14 -> 7.8 | AE17: P | AF17: =B17-B5 -> 0 | AG17: =B29-B5 -> 0 | AH17: =B29-B17 -> 0 | AK17: P | AL17: =W17-W5 -> 0.22 | AM17: =W29-W5 -> 0.22 | AN17: =W29-W17 -> 0
A18: G | B18: 51 | C18: 20.4 | D18: 10.2 | E18: 30.6 | F18: 10.2 | G18: 40.8 | H18: 20.4 | K18: G | L18: 43.6 | M18: 17.44 | N18: 17.44 | O18: 34.88 | P18: 17.44 | Q18: 52.32 | R18: 34.88 | U18: G | V18: 67 | W18: 6.7 | X18: 13.4 | Y18: 20.1 | Z18: 26.8 | AA18: 33.5 | AB18: 40.2 | AE18: G | AF18: -6 | AG18: -3 | AH18: 3 | AK18: G | AL18: -0.47 | AM18: -0.47 | AN18: 0
A19: Su | B19: 1 | C19: 0.4 | D19: 0.2 | E19: 0.6 | F19: 0.2 | G19: 0.8 | H19: 0.4 | K19: Su | L19: 4.4 | M19: 1.76 | N19: 1.76 | O19: 3.52 | P19: 1.76 | Q19: 5.28 | R19: 3.52 | U19: Su | V19: 5.4 | W19: 0.54 | X19: 1.08 | Y19: 1.62 | Z19: 2.16 | AA19: 2.7 | AB19: 3.24 | AE19: Su | AF19: -1 | AG19: 0 | AH19: 1 | AK19: Su | AL19: -0.18 | AM19: -0.3 | AN19: -0.12
A20: L | B20: 5 | C20: 2 | D20: 1 | E20: 3 | F20: 1 | G20: 4 | H20: 2 | K20: L | L20: 5.4 | M20: 2.16 | N20: 2.16 | O20: 4.32 | P20: 2.16 | Q20: 6.48 | R20: 4.32 | U20: L | V20: 7.2 | W20: 0.72 | X20: 1.44 | Y20: 2.16 | Z20: 2.88 | AA20: 3.6 | AB20: 4.32 | AE20: L | AF20: 3.5 | AG20: -0.1 | AH20: -3.6 | AK20: L | AL20: 0.04 | AM20: -0.06 | AN20: -0.1
A21: Sel | B21: 1.5 | C21: 0.6 | D21: 0.3 | E21: 0.9 | F21: 0.3 | G21: 1.2 | H21: 0.6 | K21: Sel | L21: 1.3 | M21: 0.52 | N21: 0.52 | O21: 1.04 | P21: 0.52 | Q21: 1.56 | R21: 1.04 | U21: Sel | V21: 1.5 | W21: 0.15 | X21: 0.3 | Y21: 0.45 | Z21: 0.6 | AA21: 0.75 | AB21: 0.9 | AE21: Sel | AF21: -0.2 | AG21: 0 | AH21: 0.2 | AK21: Sel | AL21: 0.02 | AM21: 0 | AN21: -0.02
A22: F | B22: 5.6 | C22: 2.24 | D22: 1.12 | E22: 3.36 | F22: 1.12 | G22: 4.48 | H22: 2.24 | K22: F | L22: 5.7 | M22: 2.28 | N22: 2.28 | O22: 4.56 | P22: 2.28 | Q22: 6.84 | R22: 4.56 | U22: F | V22: 7 | W22: 0.7 | X22: 1.4 | Y22: 2.1 | Z22: 2.8 | AA22: 3.5 | AB22: 4.2 | AE22: F | AF22: 2.6 | AG22: 0.4 | AH22: =B34-B22 -> -2.2 | AK22: F | AL22: 0.31 | AM22: 0.49 | AN22: 0.18
A25: Pain | B25: 100 gr | C25: 40 gr | E25: 60 gr | G25: 80 gr | K25: Pain de mie | L25: 100 gr | M25: 40 gr | O25: 80 gr | Q25: 120 gr | U25: Biscotte | V25: 100 gr | W25: 10 gr | X25: 20 gr | Y25: 30 gr | Z25: 40 gr | AA25: 50 gr | AB25: 60 gr
C26: 0.4 | E26: 0.6 | G26: 0.8 | K26: 3 | M26: 0.4 | O26: 0.8 | Q26: 1.2 | W26: 0.1 | X26: 0.2 | Y26: 0.3 | Z26: 0.4 | AA26: 0.5 | AB26: 0.6
A27: campagne | C27: 1 | E27: 2 | G27: 3 | K27: complet | M27: 1 Tr | O27: 2 Tr | Q27: 3 Tr | U27: complet | W27: 1 | X27: 2 | Y27: 3 | Z27: 4 | AA27: 5 | AB27: 6
A28: kcal | B28: 273 | C28: =B28*C$26 -> 109.2 | D28: =E28-C28 -> 54.6 | E28: =B28*E$26 -> 163.8 | F28: =G28-E28 -> 54.6 | G28: =B28*G$26 -> 218.4 | H28: =G28-C28 -> 109.2 | K28: kcal | L28: 258 | M28: =L28*M$26 -> 103.2 | N28: =O28-M28 -> 103.2 | O28: =L28*O$26 -> 206.4 | P28: =Q28-O28 -> 103.2 | Q28: =L28*Q$26 -> 309.6 | R28: =Q28-M28 -> 206.4 | U28: kcal | V28: 393 | W28: =V28*W$26 -> 39.3 | X28: =V28*X$26 -> 78.6 | Y28: =V28*Y$26 -> 117.9 | Z28: =V28*Z$26 -> 157.2 | AA28: =V28*AA$26 -> 196.5 | AB28: =V28*AB$26 -> 235.8
A29: P | B29: 9 | C29: =B29*C$26 -> 3.6 | D29: 1.8 | E29: 5.4 | F29: 1.8 | G29: 7.2 | H29: 3.6 | K29: P | L29: 8.4 | M29: =L29*M$26 -> 3.36 | N29: 3.36 | O29: 6.72 | P29: 3.36 | Q29: 10.08 | R29: 6.72 | U29: P | V29: 13 | W29: =V29*W$26 -> 1.3 | X29: =V29*X$26 -> 2.6 | Y29: =V29*Y$26 -> 3.9 | Z29: =V29*Z$26 -> 5.2 | AA29: =V29*AA$26 -> 6.5 | AB29: =V29*AB$26 -> 7.8
A30: G | B30: 54 | C30: 21.6 | D30: 10.8 | E30: 32.4 | F30: 10.8 | G30: 43.2 | H30: 21.6 | K30: G | L30: 42 | M30: 16.8 | N30: 16.8 | O30: 33.6 | P30: 16.8 | Q30: 50.4 | R30: 33.6 | U30: G | V30: 67 | W30: 6.7 | X30: 13.4 | Y30: 20.1 | Z30: 26.8 | AA30: 33.5 | AB30: 40.2
A31: Su | B31: 2 | C31: 0.8 | D31: 0.4 | E31: 1.2 | F31: 0.4 | G31: 1.6 | H31: 0.8 | K31: Su | L31: 5.5 | M31: 2.2 | N31: 2.2 | O31: 4.4 | P31: 2.2 | Q31: 6.6 | R31: 4.4 | U31: Su | V31: 4.2 | W31: 0.42 | X31: 0.84 | Y31: 1.26 | Z31: 1.68 | AA31: 2.1 | AB31: 2.52
A32: L | B32: 1.4 | C32: 0.56 | D32: 0.28 | E32: 0.84 | F32: 0.28 | G32: 1.12 | H32: 0.56 | K32: L | L32: 4.3 | M32: 1.72 | N32: 1.72 | O32: 3.44 | P32: 1.72 | Q32: 5.16 | R32: 3.44 | U32: L | V32: 6.2 | W32: 0.62 | X32: 1.24 | Y32: 1.86 | Z32: 2.48 | AA32: 3.1 | AB32: 3.72
A33: Sel | B33: 1.7 | C33: 0.68 | D33: 0.34 | E33: 1.02 | F33: 0.34 | G33: 1.36 | H33: 0.68 | K33: Sel | L33: 1.3 | M33: 0.52 | N33: 0.52 | O33: 1.04 | P33: 0.52 | Q33: 1.56 | R33: 1.04 | U33: Sel | V33: 1.3 | W33: 0.13 | X33: 0.26 | Y33: 0.39 | Z33: 0.52 | AA33: 0.65 | AB33: 0.78
A34: F | B34: 3.4 | C34: 1.36 | D34: 0.68 | E34: 2.04 | F34: 0.68 | G34: 2.72 | H34: 1.36 | K34: F | L34: 7.2 | M34: 2.88 | N34: 2.88 | O34: 5.76 | P34: 2.88 | Q34: 8.64 | R34: 5.76 | U34: F | V34: 8.8 | W34: 0.88 | X34: 1.76 | Y34: 2.64 | Z34: 3.52 | AA34: 4.4 | AB34: 5.28

Sheet viennoiseries-céréales (hidden)
A1: Croissant | B1: 100 gr | C1: 50 gr | F1: Pain choc. | G1: 100 gr | H1: 65 gr | K1: Pain raisin | L1: 100 gr | M1: 80 gr
C2: 0.5 | H2: 0.65 | M2: 0.8
A3: kcal | B3: 437 | C3: =B3*$C$2 -> 218.5 | F3: kcal | G3: 437 | H3: =G3*$H$2 -> 284.05 | K3: kcal | L3: 437 | M3: =L3*$M$2 -> 349.6
A4: P | B4: 7.8 | C4: =B4*$C$2 -> 3.9 | F4: P | G4: 7.8 | H4: =G4*$H$2 -> 5.07 | K4: P | L4: 7.8 | M4: =L4*$M$2 -> 6.24
A5: G | B5: 42.7 | C5: 21.35 | F5: G | G5: 42.7 | H5: 27.755 | K5: G | L5: 42.7 | M5: 34.16
A6: Su | B6: 5.2 | C6: 2.6 | F6: Su | G6: 5.2 | H6: 3.38 | K6: Su | L6: 5.2 | M6: 4.16
A7: L | B7: 25 | C7: 12.5 | F7: L | G7: 25 | H7: 16.25 | K7: L | L7: 25 | M7: 20
A8: Sel | B8: 1.2 | C8: 0.6 | F8: Sel | G8: 1.2 | H8: 0.78 | K8: Sel | L8: 1.2 | M8: 0.96
A9: F | B9: 2.9 | C9: 1.45 | F9: F | G9: 2.9 | H9: 1.885 | K9: F | L9: 2.9 | M9: 2.32
A12: Céréales | B12: 100 gr | C12: 30 gr | D12: 50 gr
C13: 1/2 bol | D13: 1 bol
A14: muësli | C14: 0.3 | D14: 0.5
A15: kcal | B15: 450 | C15: =B15*$C$14 -> 135 | D15: =B15*$D$14 -> 225
A16: P | B16: 7.8 | C16: =B16*$C$14 -> 2.34 | D16: =B16*$D$14 -> 3.9
A17: G | B17: 61.5 | C17: 18.45 | D17: 30.75
A18: Su | B18: 27.7 | C18: 8.31 | D18: 13.85
A19: L | B19: 17.6 | C19: 5.28 | D19: 8.8
A20: Sel | B20: 0.6 | C20: 0.18 | D20: 0.3
A21: F | B21: 7.8 | C21: 2.34 | D21: 3.9
A24: Céréales | B24: 100 gr | C24: 30 gr | D24: 50 gr
A25: riz souf. choc. | C25: 1/2 bol | D25: 1 bol
C26: 0.3 | D26: 0.5
A27: kcal | B27: 389 | C27: =B27*$C$26 -> 116.7 | D27: =B27*$D$26 -> 194.5
A28: P | B28: 6.3 | C28: =B28*$C$26 -> 1.89 | D28: =B28*$D$26 -> 3.15
A29: G | B29: 84.2 | C29: 25.26 | D29: 42.1
A30: Su | B30: 32.5 | C30: 9.75 | D30: 16.25
A31: L | B31: 2.2 | C31: 0.66 | D31: 1.1
A32: Sel | B32: 0.9 | C32: 0.27 | D32: 0.45
A33: F | B33: 3 | C33: 0.9 | D33: 1.5

Sheet Yaourt-fromage (hidden)
A1: Yaourt | B1: 100 gr | C1: 125 gr | E1: Yaourt | F1: 100 gr | G1: 125 gr | I1: Yaourt | J1: 100 gr | K1: 125 gr
A2: Nat sans suc | C2: 1.25 | E2: aromatisé suc | G2: 1.25 | I2: morc fruits | K2: 1.25
A3: kcal | B3: 72 | C3: =B3*$C$2 -> 90 | E3: kcal | F3: 96 | G3: =F3*$C$2 -> 120 | I3: kcal | J3: 90 | K3: =J3*$C$2 -> 112.5
A4: P | B4: 4 | C4: =B4*$C$2 -> 5 | E4: P | F4: 3.5 | G4: =F4*$C$2 -> 4.375 | I4: P | J4: 3.4 | K4: =J4*$C$2 -> 4.25
A5: G | B5: 4.8 | C5: 6 | E5: G | F5: 13 | G5: 16.25 | I5: G | J5: 12.4 | K5: 15.5
A6: Su | B6: 4.4 | C6: 5.5 | E6: Su | F6: 12.3 | G6: 15.375 | I6: Su | J6: 12 | K6: 15
A7: L | B7: 3.6 | C7: 4.5 | E7: L | F7: 3.1 | G7: 3.875 | I7: L | J7: 2.6 | K7: 3.25
A8: Sel | B8: 0.1 | C8: 0.125 | E8: Sel | F8: 0.1 | G8: 0.125 | I8: Sel | J8: 0.2 | K8: 0.25
A9: F | B9: 0.05 | C9: 0.0625 | E9: F | F9: 0.16 | G9: 0.2 | I9: F | J9: 0.2 | K9: 0.25
A12: fromage | B12: 100 gr | C12: 20 gr | D12: 40 gr | F12: fromage | G12: 100 gr | H12: 20 gr | I12: 40 gr
A13: camenbert | C13: 0.2 | D13: 0.4 | F13: Saint Nectaire | H13: 0.2 | I13: 0.4
A14: kcal | B14: 274 | C14: =B14*$C$13 -> 54.8 | D14: =B14*$D$13 -> 109.6 | F14: kcal | G14: 355 | H14: =G14*$H$13 -> 71 | I14: =G14*$I$13 -> 142
A15: P | B15: 19.3 | C15: =B15*$C$13 -> 3.86 | D15: =B15*$D$13 -> 7.72 | F15: P | G15: 22 | H15: =G15*$H$13 -> 4.4 | I15: =G15*$I$13 -> 8.8
A16: G | B16: 0.5 | C16: 0.1 | D16: 0.2 | F16: G | G16: 0.5 | H16: 0.1 | I16: 0.2
A17: Su | B17: 0.3 | C17: 0.06 | D17: 0.12 | F17: Su | G17: 0.2 | H17: 0.04 | I17: 0.08
A18: L | B18: 21.5 | C18: 4.3 | D18: 8.6 | F18: L | G18: 30 | H18: 6 | I18: 12
A19: Sel | B19: 1.43 | C19: 0.286 | D19: 0.572 | F19: Sel | G19: 1 | H19: 0.2 | I19: 0.4
A20: F | B20: 0 | C20: 0 | D20: 0 | F20: F | G20: 0 | H20: 0 | I20: 0
A23: fromage | B23: 100 gr | C23: 20 gr | D23: 40 gr | F23: fromage | G23: 100 gr | H23: 20 gr | I23: 40 gr
A24: frais chèvre | C24: 0.2 | D24: 0.4 | F24: Cantal | H24: 0.2 | I24: 0.4
A25: kcal | B25: 180 | C25: =B25*$C$24 -> 36 | D25: =B25*$D$24 -> 72 | F25: kcal | G25: 383 | H25: =G25*$H$24 -> 76.6 | I25: =G25*$I$24 -> 153.2
A26: P | B26: 10 | C26: =B26*$C$24 -> 2 | D26: =B26*$D$24 -> 4 | F26: P | G26: 26 | H26: =G26*$H$24 -> 5.2 | I26: =G26*$I$24 -> 10.4
A27: G | B27: 2 | C27: 0.4 | D27: 0.8 | F27: G | G27: 0.5 | H27: 0.1 | I27: 0.2
A28: Su | B28: 2 | C28: 0.4 | D28: 0.8 | F28: Su | G28: 0.1 | H28: 0.02 | I28: 0.04
A29: L | B29: 12 | C29: 2.4 | D29: 4.8 | F29: L | G29: 30 | H29: 6 | I29: 12
A30: Sel | B30: 1 | C30: 0.2 | D30: 0.4 | F30: Sel | G30: 1.85 | H30: 0.37 | I30: 0.74
A31: F | B31: 0 | C31: 0 | D31: 0 | F31: F | G31: 0 | H31: 0 | I31: 0

Sheet Fruits (hidden)
A1: fruits | B1: Pomme | C1: Poire | D1: banane | E1: orange | F1: clémentine
B2: 1 (220gr) | C2: 1 (150 gr) | D2: 1 (150 gr) | E2: 1 (190 gr) | F2: 2 (140 gr)
A3: kcal | B3: 53 | C3: 53 | D3: 93 | E3: 46.5 | F3: 48
A4: P | B4: 0.3 | C4: 0.4 | D4: 1.2 | E4: 1 | F4: 0.7
A5: G | B5: 11 | C5: 11 | D5: 20.5 | E5: 8.3 | F5: 10
A6: Su | B6: 11 | C6: 10.5 | D6: 16 | E6: 8.3 | F6: 10
A7: L | B7: 0.15 | C7: 0.2 | D7: 0.2 | E7: 0.3 | F7: 0.2
A8: Sel | B8: 0.005 | C8: 0.005 | D8: 0.003 | E8: 0.01 | F8: 0.07
A9: F | B9: 1.95 | C9: 3.03 | D9: 3.1 | E9: 1.82 | F9: 1.4

Sheet Beurre-confitures-pat (hidden)
A1: beurre | B1: 100 gr | C1: 10 gr | D1: 20 gr
C2: 0.1 | D2: 0.2
A3: kcal | B3: 745 | C3: =C$2*B3 -> 74.5 | D3: =D$2*B3 -> 149
A4: P | B4: 0.7 | C4: =C$2*B4 -> 0.07 | D4: =D$2*B4 -> 0.14
A5: G | B5: 1 | C5: 0.1 | D5: 0.2
A6: Su | B6: 0.6 | C6: 0.06 | D6: 0.12
A7: L | B7: 82 | C7: 8.2 | D7: 16.4
A8: Sel | B8: 0.04 | C8: 0.004 | D8: 0.008
A9: F | B9: 0 | C9: 0 | D9: 0
A12: Confiture | B12: 100 gr | C12: 30 gr
C13: 0.3
A14: kcal | B14: 262 | C14: =C$13*B14 -> 78.6
A15: P | B15: 0.4 | C15: =C$13*B15 -> 0.12
A16: G | B16: 60 | C16: 18
A17: Su | B17: 58 | C17: 17.4
A18: L | B18: 0.7 | C18: 0.21
A19: Sel | B19: 0.04 | C19: 0.012
A20: F | B20: 1 | C20: 0.3
A23: Nutella | B23: 100 gr | C23: 30 gr
C24: 0.3
A25: kcal | B25: 543 | C25: =C$13*B25 -> 162.9
A26: P | B26: 3.2 | C26: =C$13*B26 -> 0.96
A27: G | B27: 57.5 | C27: 17.25
A28: Su | B28: 56.3 | C28: 16.89
A29: L | B29: 30.9 | C29: 9.27
A30: Sel | B30: 0.1 | C30: 0.03
A31: F | B31: 3 | C31: 0.9

Sheet Charcuterie-viande (hidden)
A1: œuf | B1: 100 gr | C1: 58 gr 1 œuf
A2: cal. Moy. | C2: 0.58
A3: kcal | B3: 147 | C3: =C$2*B3 -> 85.26
A4: P | B4: 13.8 | C4: =C$2*B4 -> 8.004
A5: G | B5: 1.01 | C5: 0.5858
A6: Su | B6: 0.6 | C6: 0.348
A7: L | B7: 9.72 | C7: 5.6376
A8: Sel | B8: 0.4 | C8: 0.232
A9: F | B9: 0 | C9: 0
A11: cuit découanné dégraissé
A12: Jambon | B12: 100 gr | C12: 45 gr 1 tr
A13: blanc | C13: 0.45
A14: kcal | B14: 119 | C14: =C$13*B14 -> 53.55
A15: P | B15: 20.3 | C15: =C$13*B15 -> 9.135
A16: G | B16: 1.03 | C16: 0.4635
A17: Su | B17: 0.82 | C17: 0.369
A18: L | B18: 3.66 | C18: 1.647
A19: Sel | B19: 1.82 | C19: 0.819
A20: F | B20: 0.32 | C20: 0.144
A23: rillette du Mans | E23: poêlé sans peau
A24: Jambon | B24: 100 gr | C24: 40 gr | E24: poulet | F24: 100 gr | G24: 150 gr
A25: blanc | C25: 0.4 | E25: filet | G25: 1.5
A26: kcal | B26: 420 | C26: =C$25*B26 -> 168 | E26: kcal | F26: 124 | G26: =G$25*F26 -> 186
A27: P | B27: 15.6 | C27: =C$25*B27 -> 6.24 | E27: P | F27: 20.9 | G27: =G$25*F27 -> 31.35
A28: G | B28: 4.7 | C28: 1.88 | E28: G | F28: 0 | G28: 0
A29: Su | B29: 0.13 | C29: 0.052 | E29: Su | F29: 0 | G29: 0
A30: L | B30: 37.6 | C30: 15.04 | E30: L | F30: 4.5 | G30: 6.75
A31: Sel | B31: 1.28 | C31: 0.512 | E31: Sel | F31: 0.16 | G31: 0.24
A32: F | B32: 0 | C32: 0 | E32: F | F32: 0 | G32: 0
A35: bacon | B35: 100 gr | C35: 5 gr 1 tr
A36: grillé | C36: 0.05
A37: kcal | B37: 541 | C37: =C$36*B37 -> 27.05
A38: P | B38: 37 | C38: =C$36*B38 -> 1.85
A39: G | B39: 1.43 | C39: 0.0715
A40: Su | B40: 0 | C40: 0
A41: L | B41: 41.8 | C41: 2.09
A42: Sel | B42: 6.8 | C42: 0.34
A43: F | B43: 0 | C43: 0
